bitfinex/quotes_SOLUSD_20250130
["timestamp","ask_amount","ask_price","bid_price","bid_amount"]
[1738202818133,3.4637,235.24,235.16,27.529284]
[1738202818734,3.4637,235.24,235.16,27.029284]
[1738202820618,3.4637,235.24,235.07,25.35859058]
[1738202820619,20.0,235.22,235.07,25.35859058]
[1738202821229,3.4012,235.21,235.11,21.10459058]
[1738202821411,3.401,235.23,235.14,23.776884]
[1738202821811,3.401,235.23,235.12,23.776884]
[1738202822225,3.401,235.23,235.14,23.776884]
[1738202822428,20.0,235.22,235.14,23.776884]
[1738202822636,3.401,235.23,235.14,20.0]
[1738202822819,3.401,235.23,235.15,23.776884]
[1738202823434,3.401,235.23,235.13,4.2529]
[1738202823610,20.0,235.22,235.11,25.35779058]
[1738202824030,20.0,235.22,235.12,23.776884]
[1738202824225,3.401,235.23,235.12,23.776884]
[1738202824512,0.063,235.24,235.15,4.2526]
[1738202824712,3.4637,235.24,235.15,4.2526]
[1738202825021,0.063,235.24,235.16,23.776884]
[1738202825547,3.58929,235.24,235.16,23.776884]
[1738202825853,3.58929,235.24,235.13,25.35739058]
[1738202826811,3.58929,235.24,235.14,23.776884]
[1738202827713,3.58929,235.24,235.14,28.029584]
[1738202831846,20.0,235.23,235.13,0.03]
[1738202832059,1.5946,235.18,235.13,0.03]
[1738202832524,0.12549,235.17,235.13,0.03]
[1738202833345,1.12549,235.17,235.13,0.03]
[1738202833920,20.12549,235.15,235.13,0.03]
[1738202835055,3.52769,235.14,235.13,0.03]
[1738202835542,23.52769,235.14,235.13,0.03]
[1738202836129,1.5946,235.18,235.13,0.03]
[1738202837328,0.12549,235.21,235.13,0.03]
[1738202838339,3.52669,235.21,235.13,0.03]
[1738202839050,20.0,235.19,235.13,0.03]
[1738202839240,0.12549,235.17,235.13,0.03]
[1738202839558,1.0,235.16,235.13,0.03]
[1738202839741,0.12549,235.13,235.05,0.03]
[1738202840127,20.12549,235.13,235.05,0.03]
[1738202840463,20.0,235.11,235.05,0.03]
[1738202840828,20.0,235.07,235.05,0.03]
[1738202842055,3.4033,235.06,235.05,0.03]
[1738202842539,4.4033,235.06,235.05,0.03]
[1738202843850,0.12549,234.96,234.89,0.03]
[1738202844346,0.12549,234.94,234.89,0.03]
[1738202845455,0.12549,234.9,234.89,0.03]
[1738202847175,3.53069,234.93,234.89,0.03]
[1738202847356,0.25098,234.9,234.89,0.03]
[1738202847559,3.4046,234.97,234.89,0.03]
[1738202847758,4.4046,234.97,234.89,0.03]
[1738202847961,0.12549,234.96,234.89,0.03]
[1738202848169,0.12549,234.94,234.89,0.03]
[1738202848875,20.12549,234.94,234.89,0.03]
[1738202849268,3.4052,234.93,234.89,0.03]
[1738202849458,0.12549,234.92,234.89,0.03]
[1738202850462,6.58759,234.89,234.81,0.03]
[1738202850653,0.12549,234.82,234.76,0.03]
[1738202850855,0.12549,234.8,234.76,0.03]
[1738202851352,1.12549,234.8,234.69,0.35167169]
[1738202851573,0.12549,234.78,234.64,7.6834]
[1738202851771,0.12549,234.78,234.65,0.03]
[1738202852464,9.5169,234.83,234.65,23.806884]
[1738202852676,3.4061,234.87,234.71,23.776884]
[1738202852870,3.4061,234.87,234.74,23.776884]
[1738202853056,20.0,234.86,234.74,23.776884]
[1738202853256,6.4621,234.89,234.76,23.776884]
[1738202853556,3.4059,234.89,234.77,25.12731879]
[1738202853760,0.12549,234.88,234.77,25.12731879]
[1738202854559,20.0,234.86,234.77,25.12731879]
[1738202854747,14.5583,234.95,234.78,23.776884]
[1738202855065,1.0,234.97,234.82,23.776884]
[1738202855264,21.0,234.94,234.8,7.7091]
[1738202855467,1.0,234.92,234.76,4.2596]
[1738202855772,1.0,234.91,234.76,4.2596]
[1738202855956,1.0,234.95,234.8,23.776884]
[1738202856153,11.9163,234.97,234.82,23.776884]
[1738202856650,20.0,234.94,234.84,23.776884]
[1738202856851,1.0,234.95,234.77,20.86791879]
[1738202857169,20.0,234.94,234.77,21.50657515]
[1738202857353,2.0,234.93,234.76,23.776884]
[1738202857567,1.0,234.93,234.76,23.776884]
[1738202857775,20.0,234.94,234.77,20.86791879]
[1738202858674,4.53069,234.93,234.78,4.2593]
[1738202859962,3.53129,234.89,234.78,4.2593]
[1738202860168,3.4048,234.96,234.81,20.86791879]
[1738202860467,3.4048,234.96,234.83,44.64480279]
[1738202860672,0.12549,234.95,234.83,44.64480279]
[1738202860983,0.12549,234.93,234.83,44.64480279]
[1738202861183,3.4054,234.92,234.83,48.90300279]
[1738202861478,3.6622,234.98,234.83,48.90300279]
[1738202861479,3.4023,235.13,234.95,0.12549]
[1738202861785,9.8407,235.14,235.0,20.86791879]
[1738202861962,9.8407,235.14,234.99,23.776884]
[1738202862377,20.0,235.11,235.01,23.776884]
[1738202862683,0.12549,235.13,235.01,23.776884]
[1738202862883,0.12549,235.11,235.01,28.031984]
[1738202864068,0.12549,235.11,235.03,23.776884]
[1738202864469,0.063,235.16,235.03,23.776884]
[1738202864670,3.4023,235.14,235.05,23.776884]
[1738202865485,0.31398,235.13,235.05,23.776884]
[1738202865894,3.71638,235.13,235.0,20.86791879]
[1738202866258,3.71638,235.13,235.03,23.776884]
[1738202866481,0.12549,235.1,235.03,23.776884]
[1738202866691,0.12549,235.12,235.0,20.86791879]
[1738202867704,3.4026,235.11,235.0,20.86791879]
[1738202868591,3.4026,235.11,235.02,20.86791879]
[1738202870301,3.4029,235.09,235.02,20.86791879]
[1738202872179,0.063,235.13,235.03,23.776884]
[1738202872500,3.4025,235.12,235.03,23.776884]
[1738202872670,0.12549,235.11,235.02,20.86791879]
[1738202872868,0.12549,235.11,234.98,20.86791879]
[1738202873278,11.9087,235.12,235.02,20.0]
[1738202873485,0.063,235.13,235.11,20.86791879]
[1738202873689,0.063,235.13,235.12,0.63785282]
[1738202873975,0.063,235.13,235.11,20.86791879]
[1738202876494,0.063,235.13,235.09,45.28259323]
[1738202876694,0.063,235.13,235.09,44.64480279]
[1738202880523,0.063,235.13,235.11,20.86791879]
[1738202880725,0.063,235.13,235.12,24.41468169]
[1738202880890,0.063,235.13,235.09,20.86791879]
[1738202881092,3.4655,235.13,235.08,20.86791879]
[1738202881391,3.4655,235.13,235.06,0.63776944]
[1738202881611,3.4655,235.13,235.05,20.86791879]
[1738202882094,20.0,235.1,235.01,20.86791879]
[1738202883022,22.6196,235.09,234.97,0.63799633]
[1738202883318,22.6196,235.09,234.94,20.86791879]
[1738202883319,21.6196,235.09,234.94,20.86791879]
[1738202884116,3.403,235.08,234.94,25.12421879]
[1738202885721,0.12549,235.07,234.96,20.86791879]
[1738202885913,3.403,235.08,235.0,20.86791879]
[1738202886220,3.403,235.08,235.01,23.776884]
[1738202888198,0.12549,235.11,235.01,23.776884]
[1738202888402,3.4028,235.1,235.01,23.776884]
[1738202889438,3.4028,235.1,235.02,0.63807218]
[1738202889597,0.063,235.13,235.06,20.86791879]
[1738202889800,0.063,235.13,235.07,24.41478606]
[1738202890010,3.4654,235.13,235.04,20.86791879]
[1738202890209,23.4654,235.13,234.97,10.6393]
[1738202890435,23.4654,235.13,235.0,20.86791879]
[1738202890613,23.4654,235.13,235.02,20.86791879]
[1738202890929,23.4654,235.13,235.03,23.776884]
[1738202891533,23.4654,235.13,235.03,28.031484]
[1738202892630,0.063,235.13,235.05,28.031284]
[1738202892931,3.4653,235.13,235.05,4.2544]
[1738202893131,0.12549,235.12,235.03,4.2546]
[1738202893503,0.063,235.13,235.07,23.776884]
[1738202893701,0.063,235.13,235.08,0.63787587]
[1738202893902,0.063,235.13,235.09,23.776884]
[1738202894413,0.063,235.13,235.05,24.41479597]
[1738202894703,0.063,235.13,235.05,0.63791197]
[1738202895240,0.063,235.13,235.06,23.776884]
[1738202895424,0.063,235.13,235.06,28.031084]
[1738202895812,23.59089,235.13,234.98,20.86791879]
[1738202896129,3.59089,235.13,234.98,23.776884]
[1738202896422,12.09679,235.13,234.98,20.86791879]
[1738202896629,12.09679,235.13,235.0,20.86791879]
[1738202896809,12.09679,235.13,235.01,24.41490524]
[1738202896810,3.59089,235.13,235.01,24.41490524]
[1738202897121,0.063,235.13,235.05,23.776884]
[1738202897322,0.063,235.13,235.08,23.776884]
[1738202898024,0.063,235.13,235.09,0.63790007]
[1738202898331,0.063,235.13,235.1,23.776884]
[1738202898528,0.063,235.13,235.12,23.776884]
[1738202899329,0.063,235.16,235.15,20.0]
[1738202899525,0.063,235.24,235.16,0.12549]
[1738202899838,0.063,235.24,235.21,23.776884]
[1738202900008,0.063,235.24,235.18,20.86791879]
[1738202900207,0.063,235.24,235.19,24.41442818]
[1738202900827,0.063,235.24,235.21,23.776884]
[1738202901127,0.063,235.24,235.17,0.63747028]
[1738202901449,0.063,235.24,235.13,25.12081879]
[1738202901811,0.063,235.24,235.14,23.776884]
[1738202902427,0.063,235.24,235.11,25.12111879]
[1738202902751,0.063,235.24,235.12,23.776884]
[1738202902937,3.4638,235.24,235.12,23.776884]
[1738202903115,3.4638,235.24,235.14,23.776884]
[1738202903517,0.25098,235.23,235.09,32.82781879]
[1738202903712,0.25098,235.2,235.05,20.86791879]
[1738202903918,1.25098,235.2,235.03,28.87611879]
[1738202904223,0.25098,235.2,235.03,28.87611879]
[1738202904420,20.25098,235.21,235.07,20.86791879]
[1738202904937,20.25098,235.21,235.08,23.776884]
[1738202906161,0.063,235.24,235.2,20.0]
[1738202906318,0.063,235.24,235.23,20.86791879]
[1738202906631,0.063,235.24,235.23,45.28221728]
[1738202908016,0.063,235.24,235.17,1.5898]
[1738202908017,0.063,235.24,235.19,25.11961879]
[1738202908212,0.063,235.24,235.17,2.22727745]
[1738202908213,0.063,235.24,235.21,23.776884]
[1738202908729,0.063,235.24,235.17,0.6375641]
[1738202909112,3.4638,235.24,235.07,1.5862]
[1738202909316,20.0,235.22,235.07,22.45411879]
[1738202910010,3.52669,235.21,235.07,26.70801879]
[1738202910226,23.52669,235.21,235.07,26.70801879]
[1738202910536,3.52669,235.21,235.07,4.2539]
[1738202910737,23.52669,235.21,235.05,4.2542]
[1738202910918,0.12549,235.19,235.06,23.776884]
[1738202911109,20.0,235.18,235.06,24.4148191]
[1738202911313,0.12549,235.17,235.06,24.4148191]
[1738202911530,3.52669,235.2,235.06,24.4148191]
[1738202911735,0.063,235.21,235.1,23.776884]
[1738202911933,0.063,235.21,235.1,24.41465764]
[1738202912118,0.063,235.21,235.13,20.86791879]
[1738202912322,0.063,235.21,235.19,20.86791879]
[1738202912542,0.063,235.21,235.2,24.41442191]
[1738202913613,0.0001,235.21,235.2,46.6588107]
[1738202913941,0.0001,235.21,235.2,24.53991191]
[1738202914142,0.0001,235.21,235.2,28.66612191]
[1738202914319,0.0001,235.21,235.2,28.79161191]
[1738202914637,0.0001,235.21,235.2,4.88923791]
[1738202915331,0.0001,235.21,235.2,4.2517]
[1738202916345,0.0001,235.21,235.18,28.028784]
[1738202917838,0.0001,235.21,235.15,4.2524]
[1738202918032,0.0001,235.21,235.15,4.89008904]
[1738202918339,0.0001,235.21,235.16,57.63708178]
[1738202918649,0.0001,235.21,235.18,23.776884]
[1738202919146,0.0001,235.21,235.17,23.776884]
[1738202919644,0.0001,235.21,235.15,4.2525]
[1738202920144,0.0001,235.21,235.16,23.776884]
[1738202920846,0.0001,235.21,235.12,33.86019778]
[1738202921035,0.0001,235.21,235.11,4.2533]
[1738202921228,0.0001,235.21,235.12,23.776884]
[1738202921639,0.0001,235.21,235.14,23.776884]
[1738202921840,0.0001,235.21,235.16,28.029084]
[1738202922748,0.0001,235.21,235.14,4.2526]
[1738202923924,0.0001,235.21,235.14,4.89029402]
[1738202924133,0.0001,235.21,235.14,4.2526]
[1738202924647,0.0001,235.21,235.15,23.776884]
[1738202925337,0.0001,235.21,235.12,28.029984]
[1738202926662,0.0001,235.21,235.12,61.89018178]
[1738202927550,0.0001,235.21,235.12,28.029984]
[1738202928446,0.0001,235.21,235.1,4.2533]
[1738202929229,0.0001,235.21,235.11,23.776884]
[1738202929745,3.4013,235.21,235.1,23.776884]
[1738202930058,3.4013,235.21,235.11,4.2532]
[1738202930950,21.5267,235.2,235.09,4.2535]
[1738202931140,21.5267,235.2,235.07,4.3168]
[1738202932151,20.12549,235.18,235.08,23.776884]
[1738202933038,0.12549,235.16,235.08,4.2538]
[1738202933939,1.5267,235.2,235.08,38.75195828]
[1738202934437,0.12549,235.19,235.08,38.75195828]
[1738202934764,0.12549,235.19,235.08,4.2538]
[1738202934964,0.12549,235.19,235.07,4.317]
[1738202935256,0.12549,235.17,235.07,4.317]
[1738202935459,0.12549,235.17,235.08,0.063]
[1738202936368,2.5267,235.2,235.1,33.86019778]
[1738202936369,1.5267,235.2,235.1,33.86019778]
[1738202936652,0.0001,235.21,235.13,44.62040804]
[1738202937563,0.0001,235.21,235.15,23.776884]
[1738202937855,0.0001,235.21,235.15,44.62040804]
[1738202938156,0.0001,235.21,235.2,23.776884]
[1738202938369,0.0001,235.21,235.2,24.41441062]
[1738202938954,0.0001,235.21,235.16,20.84352404]
[1738202939347,0.0001,235.21,235.17,23.776884]
[1738202939675,0.0001,235.21,235.19,23.776884]
[1738202940045,0.0001,235.21,235.18,4.252]
[1738202940371,0.0001,235.21,235.16,4.2523]
[1738202940734,0.0001,235.21,235.17,23.776884]
[1738202941135,1.5315,235.2,235.08,20.90652404]
[1738202941443,0.12549,235.16,235.08,4.3168]
[1738202941664,3.52739,235.16,235.08,0.063]
[1738202942040,0.12549,235.16,235.08,4.3167]
[1738202942474,0.12549,235.19,235.08,4.3167]
[1738202942649,0.12549,235.19,235.1,20.84352404]
[1738202942960,7.5753,235.2,235.1,20.84352404]
[1738202943177,0.12549,235.19,235.08,35.79482404]
[1738202943473,7.5753,235.2,235.1,20.84352404]
[1738202943637,7.5753,235.2,235.11,4.2533]
[1738202944144,0.12549,235.19,235.08,0.063]
[1738202944342,0.12549,235.19,235.08,4.3167]
[1738202945445,3.4016,235.18,235.08,4.3167]
[1738202945646,10.9767,235.2,235.09,23.776884]
[1738202945951,7.5753,235.2,235.09,23.776884]
[1738202946153,0.12549,235.19,235.09,23.776884]
[1738202947048,0.12549,235.19,235.11,23.776884]
[1738202948172,0.12549,235.19,235.09,0.063]
[1738202948358,0.12549,235.19,235.11,4.2532]
[1738202948754,1.5315,235.2,235.12,23.776884]
[1738202949177,1.5315,235.2,235.11,4.2532]
[1738202950170,4.9328,235.2,235.11,4.2532]
[1738202950567,1.5315,235.2,235.12,23.776884]
[1738202951665,1.5315,235.2,235.11,4.2532]
[1738202951970,34.4362,235.2,235.09,0.063]
[1738202952274,0.12549,235.14,235.09,0.063]
[1738202952476,20.0,235.15,235.09,0.063]
[1738202952477,3.24,235.13,235.09,0.063]
[1738202952784,0.12549,235.12,235.09,0.063]
[1738202953577,0.12549,235.1,235.09,0.063]
[1738202954074,3.52829,235.1,235.09,0.063]
[1738202955949,3.52829,235.1,235.08,0.063]
[1738202955950,0.12549,235.09,235.08,0.063]
[1738202956154,0.12549,235.07,234.91,4.2568]
[1738202956354,20.12549,235.07,234.91,4.2568]
[1738202956780,20.12549,235.07,234.92,23.776884]
[1738202956968,20.12549,235.07,234.91,4.2568]
[1738202957262,0.12549,235.05,234.92,23.776884]
[1738202958370,3.52879,235.06,234.94,23.776884]
[1738202958568,3.52879,235.06,234.96,23.776884]
[1738202958981,20.12549,235.06,234.96,23.776884]
[1738202959179,3.4031,235.08,234.96,23.776884]
[1738202960389,0.12549,235.07,234.98,23.776884]
[1738202960677,0.03,235.1,235.01,20.84352404]
[1738202960982,0.03,235.1,235.04,23.776884]
[1738202961182,0.03,235.1,235.02,23.776884]
[1738202961777,0.03,235.1,235.01,21.48156821]
[1738202961778,0.03,235.1,235.04,23.776884]
[1738202963270,0.03,235.1,235.06,23.776884]
[1738202963892,0.03,235.1,235.04,28.66937645]
[1738202965086,0.03,235.1,235.04,24.41487645]
[1738202965256,0.03,235.1,235.02,4.2549]
[1738202965466,0.03,235.1,234.93,4.2565]
[1738202965788,20.0,235.04,234.88,20.84352404]
[1738202965962,20.0,235.04,234.86,25.10132404]
[1738202966161,20.0,235.04,234.9,23.776884]
[1738202966783,3.4038,235.03,234.87,4.2576]
[1738202967084,20.0,235.02,234.87,4.2576]
[1738202967270,20.0,235.0,234.87,4.2576]
[1738202968288,3.4044,234.99,234.87,4.2576]
[1738202969088,0.12549,234.98,234.87,4.2576]
[1738202969276,3.4041,235.01,234.88,21.48194939]
[1738202969888,3.4041,235.01,234.89,23.776884]
[1738202969889,0.12549,235.0,234.89,23.776884]
[1738202970305,0.12549,235.0,234.9,4.2571]
[1738202970485,3.4039,235.03,234.9,25.10062404]
[1738202970687,20.12549,235.02,234.86,20.84352404]
[1738202970889,20.12549,235.02,234.86,25.10132404]
[1738202971094,20.12549,235.02,234.87,23.776884]
[1738202971593,20.12549,235.02,234.9,0.063]
[1738202971889,6.4677,235.07,234.91,23.776884]
[1738202972081,6.4677,235.07,234.94,20.84352404]
[1738202972082,6.5833,235.06,234.94,20.84352404]
[1738202972394,9.8709,235.07,234.97,23.776884]
[1738202973182,0.12549,235.06,234.97,23.776884]
[1738202973770,3.52889,235.06,234.97,23.776884]
[1738202973970,3.52889,235.06,234.97,28.032584]
[1738202974170,0.12549,235.06,234.97,28.67080178]
[1738202974584,6.4677,235.07,234.98,20.84352404]
[1738202974776,1.567,235.08,234.98,20.84352404]
[1738202975178,1.567,235.08,234.97,28.032584]
[1738202975771,1.567,235.08,234.98,21.48165685]
[1738202975972,0.12549,235.07,234.97,24.2557]
[1738202976171,0.12549,235.07,234.95,4.256]
[1738202977387,3.4033,235.06,234.96,23.776884]
[1738202977588,4.9702,235.08,234.96,45.25865332]
[1738202977779,1.567,235.08,234.98,20.84352404]
[1738202978091,1.567,235.08,235.0,23.776884]
[1738202978472,1.567,235.08,234.96,44.62040804]
[1738202978667,4.9701,235.08,234.96,44.62040804]
[1738202978871,4.9701,235.08,234.96,23.776884]
[1738202979594,4.9701,235.08,234.94,20.84352404]
[1738202979895,20.0,235.07,234.96,23.776884]
[1738202980082,20.0,235.07,234.96,45.25865537]
[1738202980391,4.9701,235.08,234.96,45.25865537]
[1738202980896,0.03,235.1,235.0,44.62040804]
[1738202981069,0.03,235.1,235.02,23.776884]
[1738202981275,0.12549,235.09,234.96,20.84352404]
[1738202981976,0.12549,235.08,234.97,28.032684]
[1738202983297,3.52869,235.08,234.97,28.032684]
[1738202984014,0.12549,235.08,234.97,28.67087664]
[1738202984305,3.4328,235.1,234.98,20.84352404]
[1738202984500,0.12549,235.09,234.97,4.2558]
[1738202986106,3.4328,235.1,235.0,20.84352404]
[1738202986107,0.03,235.1,235.0,20.84352404]
[1738202986286,0.03,235.1,235.02,20.84352404]
[1738202986490,0.03,235.1,235.03,23.776884]
[1738202987190,0.03,235.1,235.02,28.031784]
[1738202987611,0.03,235.1,235.02,59.51260804]
[1738202987905,0.03,235.1,235.06,20.84352404]
[1738202988106,0.03,235.1,235.04,20.84352404]
[1738202988296,0.03,235.1,235.02,25.09842404]
[1738202988499,0.03,235.1,235.02,4.2549]
[1738202988689,0.03,235.1,235.02,25.09842404]
[1738202988880,0.03,235.1,235.05,23.776884]
[1738202989302,0.03,235.1,235.06,4.2542]
[1738202989476,0.03,235.1,235.07,24.41479607]
[1738202990383,0.03,235.1,235.07,23.776884]
[1738202991414,0.03,235.1,235.07,28.030784]
[1738202991704,0.03,235.1,235.03,4.2546]
[1738202992093,0.03,235.1,235.04,23.776884]
[1738202992396,0.03,235.1,235.07,23.776884]
[1738202992594,11.725,235.24,235.1,23.776884]
[1738202992595,6.1503,235.24,235.1,23.776884]
[1738202992790,6.1503,235.24,235.12,23.776884]
[1738202993018,9.5511,235.24,235.12,23.776884]
[1738202993310,3.4009,235.23,235.12,23.776884]
[1738202993713,3.4009,235.23,235.13,4.2529]
[1738202993918,6.1503,235.24,235.13,4.2529]
[1738202994208,9.5511,235.24,235.13,4.2529]
[1738202995199,9.5511,235.24,235.14,28.029584]
[1738202995585,9.5511,235.24,235.08,20.84352404]
[1738202995586,9.5511,235.24,235.12,4.253]
[1738202995786,9.5511,235.24,235.12,23.776884]
[1738202997309,0.12549,235.23,235.12,23.776884]
[1738202997812,0.12549,235.23,235.12,28.029984]
[1738202998507,0.12549,235.23,235.14,23.776884]
[1738202998897,3.52649,235.23,235.14,28.029584]
[1738203000219,6.1503,235.24,235.16,23.776884]
[1738203000389,0.063,235.24,235.16,23.776884]
[1738203000590,0.063,235.24,235.18,23.776884]
[1738203000891,3.4009,235.23,235.14,4.2527]
[1738203001826,3.4009,235.23,235.13,40.84352404]
[1738203002129,3.4009,235.23,235.12,4.253]
[1738203002722,20.0,235.22,235.1,4.2535]
[1738203002906,11.9032,235.23,235.07,20.84352404]
[1738203003103,6.0467,235.21,235.05,25.09792404]
[1738203003424,6.0467,235.21,235.08,23.776884]
[1738203003721,6.0467,235.21,235.07,20.84352404]
[1738203003903,3.4013,235.2,235.07,25.09752404]
[1738203004294,3.4013,235.2,235.08,23.776884]
[1738203004703,1.6205,235.17,235.01,20.84352404]
[1738203004905,1.6205,235.12,234.96,20.84352404]
[1738203005098,0.12549,235.11,234.97,0.063]
[1738203005490,0.12549,235.11,235.02,20.84352404]
[1738203005690,1.6205,235.12,235.05,23.776884]
[1738203005934,1.6205,235.12,235.07,23.776884]
[1738203006100,6.0466,235.16,235.09,23.776884]
[1738203007233,0.03,235.2,235.13,23.776884]
[1738203008209,0.03,235.2,235.13,28.029784]
[1738203009932,0.03,235.2,235.16,20.84352404]
[1738203010227,0.03,235.2,235.17,28.028984]
[1738203010406,0.03,235.2,235.15,23.776884]
[1738203010615,0.03,235.2,235.15,28.029284]
[1738203011427,0.03,235.2,235.17,23.776884]
[1738203012115,0.03,235.2,235.15,4.2526]
[1738203012317,0.03,235.2,235.17,23.776884]
[1738203013329,0.03,235.2,235.19,23.776884]
[1738203014522,0.03,235.2,235.14,25.09622404]
[1738203014901,0.03,235.2,235.15,23.776884]
[1738203015339,0.03,235.2,235.17,23.776884]
[1738203015727,0.03,235.2,235.14,35.72812404]
[1738203015920,0.03,235.2,235.16,44.62040804]
[1738203016504,0.03,235.2,235.14,14.8846]
[1738203016505,0.03,235.2,235.19,23.776884]
[1738203017035,0.03,235.2,235.17,4.2522]
[1738203017214,0.03,235.2,235.12,20.84352404]
[1738203017525,0.03,235.2,235.17,20.84352404]
[1738203017717,0.03,235.2,235.19,44.62040804]
[1738203019100,0.03,235.2,235.19,48.87220804]
[1738203019627,0.03,235.2,235.19,28.028684]
[1738203019926,0.03,235.2,235.13,20.84352404]
[1738203020708,0.03,235.2,235.14,23.776884]
[1738203021115,0.03,235.2,235.11,20.84352404]
[1738203021407,0.03,235.2,235.12,4.2531]
[1738203022537,0.03,235.2,235.13,23.776884]
[1738203023826,0.03,235.2,235.13,44.62040804]
[1738203024123,0.03,235.2,235.13,45.25808857]
[1738203024621,0.03,235.2,235.14,4.2527]
[1738203029833,0.03,235.2,235.19,36.80422312]
[1738203030011,0.03,235.2,235.19,37.44180481]
[1738203030616,0.03,235.2,235.19,41.69360481]
[1738203032736,0.03,235.2,235.19,41.05602312]
[1738203033138,0.03,235.2,235.19,23.776884]
[1738203034028,0.03,235.2,235.18,4.252]
[1738203034331,0.03,235.2,235.16,28.029284]
[1738203034535,0.03,235.2,235.16,4.2524]
[1738203035034,0.03,235.2,235.17,0.63765268]
[1738203035339,0.03,235.2,235.19,13.02733912]
[1738203035511,0.03,235.2,235.19,13.66486318]
[1738203036537,0.03,235.2,235.19,41.69354718]
[1738203037124,0.03,235.2,235.19,41.05602312]
[1738203041343,0.03,235.2,235.16,4.2524]
[1738203041519,0.03,235.2,235.1,13.09033912]
[1738203041726,0.03,235.2,235.11,23.776884]
[1738203041926,0.03,235.2,235.12,13.02733912]
[1738203042725,0.03,235.2,235.14,23.776884]
[1738203044455,0.03,235.2,235.15,23.776884]
[1738203045029,0.03,235.2,235.17,23.776884]
[1738203045838,0.03,235.2,235.19,23.776884]
[1738203046247,0.03,235.2,235.19,28.66628969]
[1738203048523,0.03,235.2,235.19,41.69362881]
[1738203048925,0.0001,235.24,235.23,20.12549]
[1738203049234,0.0001,235.24,235.23,57.56701061]
[1738203050232,0.0001,235.24,235.23,57.44152061]
[1738203050437,0.0001,235.24,235.23,61.05532312]
[1738203051827,0.0001,235.24,235.17,13.02733912]
[1738203052224,0.0001,235.24,235.15,17.27993912]
[1738203052432,0.0001,235.24,235.16,23.776884]
[1738203052859,0.0001,235.24,235.15,17.27993912]
[1738203053640,0.0001,235.24,235.16,23.776884]
[1738203054553,0.0001,235.24,235.21,13.02733912]
[1738203054730,0.0001,235.24,235.23,36.80422312]
[1738203054932,0.0001,235.24,235.23,37.44170136]
[1738203055942,0.0001,235.24,235.23,41.69280136]
[1738203056658,0.03,235.34,235.28,23.776884]
[1738203056866,0.03,235.34,235.32,36.80422312]
[1738203057854,0.03,235.34,235.32,41.05372312]
[1738203058259,0.03,235.34,235.32,36.80422312]
[1738203058640,0.03,235.34,235.32,23.776884]
[1738203060469,0.03,235.34,235.31,20.81296969]
[1738203060674,0.03,235.34,235.32,21.45032316]
[1738203061155,0.0001,235.33,235.32,66.04017685]
[1738203062369,0.0001,235.33,235.32,70.28967685]
[1738203062742,0.0001,235.33,235.32,49.47670716]
[1738203064684,0.0001,235.33,235.32,48.83935369]
[1738203066478,0.0001,235.33,235.31,20.81296969]
[1738203066686,0.0001,235.33,235.28,20.81296969]
[1738203066985,0.0001,235.33,235.24,0.63734208]
[1738203066986,0.0001,235.33,235.27,23.776884]
[1738203067780,0.0001,235.33,235.28,20.81296969]
[1738203067991,0.0001,235.33,235.32,44.58985369]
[1738203068373,0.0001,235.33,235.32,48.83935369]
[1738203071176,0.0001,235.33,235.32,69.65232338]